Cogmind - Beta 9.6 @@@ ROGUE MODE // 2020.08.22 @ 03:18:32 Player: Cracklepappy Result: Self-destructed Performance ------------- Evolutions (1) 500 Regions Visited (4) 800 Robots Destroyed (24) 120 Value Destroyed (469) 469 Prototype IDs (2) 40 Alien Tech Used (0) 0 Bonus (43) 43 TOTAL SCORE: 1972 Bonus ------- High Alert Combat Kills 11 Follower Combat Kills 49 Friendly Fire -17 Cogmind --------- Core Integrity 245/400 Matter 184/300 Energy 100/100 System Corruption 0% Temperature Cool (9) Movement Treading (200) Ox2 Location -9/Storage Parts ------- > --- POWER (1) -------- (None) > --- PROPULSION (2) --- Light Treads Compact Wheel > --- UTILITY (4) ------ High-capacity Storage Unit Signal Interpreter Hardened Medium Armor Plating > --- WEAPON (2) ------- Mini Grenade Launcher > --- INVENTORY (12) --- Light Ion Engine Light Treads Light Treads Compact Wheel Small Storage Unit Propulsion Shielding Hardened Medium Armor Plating Hardened Medium Armor Plating Improved Light Armor Plating Improved Light Armor Plating Spread Laser Assault Rifle Peak State ------------ > --- POWER ------------ Light Ion Engine > --- PROPULSION ------- Light Treads Compact Wheel > --- UTILITY ---------- High-capacity Storage Unit Signal Interpreter Hardened Medium Armor Plating Hardened Medium Armor Plating > --- WEAPON ----------- Rocket Launcher Mini Grenade Launcher > --- INVENTORY -------- Light Treads Light Treads Compact Wheel Small Storage Unit Propulsion Shielding Hardened Medium Armor Plating Hardened Medium Armor Plating Improved Light Armor Plating Improved Light Armor Plating Improved Light Armor Plating Spread Laser Assault Rifle [Rating: 17] Favorites ----------- Power Ion Engine Engine Ion Engine Propulsion Compact Wheel Treads Light Treads Leg Aluminum Leg Wheel Compact Wheel Flight Unit Flight Unit Utility Hardened Medium Armor Plating Storage Small Storage Unit Processor Signal Interpreter Protection Hardened Medium Armor Plating Weapon Assault Rifle Energy Gun EM Pulse Gun Ballistic Gun Assault Rifle Launcher Mini Grenade Launcher Build | -11 -10 -10 -9 -9 ------- Run | Scr Mat Min Mat Sto Slots Evolved 2 | . . . 2 . Power . | . . . . . Propulsion . | . . . . . Utility 2 | . . . 2 . Weapon . | . . . . . Parts Attached 27 | 6 1 3 15 2 Power 3 | 1 . . 2 . Engine 3 | 1 . . 2 . Core . | . . . . . Reactor . | . . . . . Propulsion 7 | 2 . 2 3 . Treads 1 | . . . 1 . Leg 1 | . . 1 . . Wheel 4 | 2 . . 2 . Hover . | . . . . . Flight 1 | . . 1 . . Utility 9 | 1 1 . 6 1 Device . | . . . . . Storage 2 | 1 . . 1 . Processor 1 | . . . 1 . Hackware . | . . . . . Protection 6 | . 1 . 4 1 Artifact . | . . . . . Weapon 8 | 2 . 1 4 1 Energy Gun 3 | 1 . . 2 . Energy Cannon . | . . . . . Ballistic Gun 2 | 1 . 1 . . Ballistic Cannon . | . . . . . Launcher 3 | . . . 2 1 Special Weapon . | . . . . . Impact Weapon . | . . . . . Slashing Weapon . | . . . . . Piercing Weapon . | . . . . . Special Melee Weapon . | . . . . . Unidentified Prototypes . | . . . . . Parts Lost 8 | . . 3 2 3 Power 3 | . . . 2 1 Propulsion 2 | . . 2 . . Utility 1 | . . . . 1 Weapon 2 | . . 1 . 1 Highest Loss Streak 2 | . . 2 1 2 Average Slot Usage (%) 95 | . 88 98 93 96 Engine 10 | . 14 14 7 8 Treads 5 | . . . 8 11 Leg 1 | . . 2 2 . Wheel 16 | . 28 24 11 11 Storage 12 | . 14 14 11 11 Processor 5 | . . . 7 11 Protection 18 | . 3 14 23 22 Energy Gun 5 | . 14 10 3 . Ballistic Gun 8 | . 14 17 4 . Launcher 10 | . . . 14 21 Naked Turns . | . . . . . Heaviest Build 56 | 13 14 14 56 56 Greatest Support 26 | 26 26 26 16 20 Greatest Overweight (x) 3 | 3 . 1 3 2 Average Overweight (x) . | . . . 1 2 Largest Inventory Capacity 12 | 6 6 6 12 12 Average Capacity 8 | 5 6 6 9 12 Most Carried 12 | 6 6 6 12 12 Average Carried 7 | 2 6 5 8 12 Final Capacity 12 | 6 6 6 12 12 Final Carried 12 | 6 6 6 12 12 Class Distribution -------------------- 100% | Mutant Dominant Class ---------------- Mutant | -10/Materials Mutant | -10/Mines Mutant | -9/Materials Mutant | -9/Storage Resources | -11 -10 -10 -9 -9 ----------- Run | Scr Mat Min Mat Sto Matter Collected 417 | 260 . 38 119 . Remotely . | . . . . . Salvage Created 595 | 73 60 70 392 . Parts 52 | 2 5 4 41 . Haulers Intercepted . | . . . . . Recyclers Shooed . | . . . . . Parts Field Recycled . | . . . . . Retrieved Matter . | . . . . . Parts Self-Destructed . | . . . . . Prevented . | . . . . . Kills | -11 -10 -10 -9 -9 ------- Run | Scr Mat Min Mat Sto Combat Hostiles Destroyed 19 | . 3 2 14 . Guns 10 | . 3 2 5 . AOE 9 | . . . 9 . Classes Destroyed 6 | 1 2 1 2 . Worker 1 | . . . 1 . Recycler 2 | 1 . . 1 . Watcher 2 | . 1 . 1 . Swarmer 11 | . 3 1 7 . Grunt 6 | . . 1 5 . Sentry 2 | . . . 2 . Best Kill Streak 6 | 1 4 1 6 . Combat Bots Only 5 | . 3 1 5 . Max Kills in Single Turn 4 | 1 1 1 4 . Gunslinging . | . . . . . Exploded 3 | . . . 3 . Melee . | . . . . . Uniques/NPCs Destroyed . | . . . . . Combat | -11 -10 -10 -9 -9 -------- Run | Scr Mat Min Mat Sto Damage Taken 1427 | . 51 326 600 450 Core 214 | . . 59 79 76 Absorbed by Shields . | . . . . . Core Remaining (%) 88 | 100 . 76 . . Volleys Fired 62 | 5 10 15 32 . Largest 2 | 1 1 2 1 . Hottest 65 | 40 40 40 65 . Shots Fired 66 | 5 10 19 32 . Gun 58 | 5 10 19 24 . Cannon . | . . . . . Launcher 8 | . . . 8 . Special . | . . . . . Kinetic 8 | . . 8 . . Thermal 24 | . . . 24 . Explosive 8 | . . . 8 . Electromagnetic 26 | 5 10 11 . . Robot Hit Streak 7 | 3 2 1 7 . Robot Miss Streak 10 | 1 3 5 10 . Penetration Max . | . . . . . Secondary Targets . | . . . . . Shots Hit Robots 40 | 4 4 4 28 . Core Hits 49 | 2 4 4 39 . Critical Hits . | . . . . . Critical Kills . | . . . . . Critical Parts Destroyed . | . . . . . Melee Attacks . | . . . . . Impact . | . . . . . Slashing . | . . . . . Piercing . | . . . . . Sneak Attacks . | . . . . . Combat Hostiles . | . . . . . Follow-up Attacks . | . . . . . Damage Inflicted 1057 | 54 121 98 784 . Guns 432 | 54 78 93 207 . Cannons . | . . . . . Explosions 604 | . 43 . 561 . Melee . | . . . . . Ramming 21 | . . 5 16 . Kinetic 21 | . . 21 . . Thermal 250 | . 43 . 207 . Explosive 561 | . . . 561 . Electromagnetic 204 | 54 78 72 . . Impact . | . . . . . Slashing . | . . . . . Piercing . | . . . . . Highest Corruption . | . . . . . Average Corruption . | . . . . . Corruption Purged . | . . . . . Overload Shots . | . . . . . Overflow Damage 16 | . . . 16 . Projectiles . | . . . . . Explosions 16 | . . . 16 . Melee . | . . . . . Knockbacks . | . . . . . Impact . | . . . . . Kinetic . | . . . . . Secondary . | . . . . . Self-Inflicted Damage 1 | . . 1 . . Shots . | . . . . . Rammed 2 | . . 1 1 . Targets Rammed 3 | . . 2 1 . Kicked 1 | . . 1 . . Crushed . | . . . . . Highest Temperature 183 | . . 6 183 . Average Temperature 75 | . . 6 78 . Received Heat Transfer 432 | . . 93 222 117 Siege Activations . | . . . . . Robots Corrupted . | . . . . . Combat Hostiles . | . . . . . Parts Fried . | . . . . . Impact Corruptions . | . . . . . Robots Melted . | . . . . . Combat Hostiles . | . . . . . Parts Melted . | . . . . . Heat Transferred 305 | . 50 . 255 . Parts Sabotaged . | . . . . . Parts Stolen . | . . . . . Parts Stripped . | . . . . . Power Chain Reactions 1 | . 1 . . . Missiles Intercepted . | . . . . . Alert | -11 -10 -10 -9 -9 ------- Run | Scr Mat Min Mat Sto Peak Influence 435 | 5 95 122 435 125 Average Influence 152 | 2 47 63 297 87 Maximum Alert Level 2 | . . . 2 . Low Security (%) 67 | 100 100 100 15 100 Level 1 20 | . . . 52 . Level 2 12 | . . . 31 . Level 3 . | . . . . . Level 4 . | . . . . . Level 5 . | . . . . . High Security . | . . . . . Max Security . | . . . . . Squads Dispatched 6 | . . 1 2 3 Investigation 2 | . . 1 1 . Extermination . | . . . . . Reinforcement 4 | . . . 1 3 Assault . | . . . . . Garrison . | . . . . . Intercept . | . . . . . Construction Impeded . | . . . . . Haulers Reinforced . | . . . . . Stealth | -11 -10 -10 -9 -9 --------- Run | Scr Mat Min Mat Sto Distress Signals 3 | . . . 2 1 Communications Jammed . | . . . . . Distress Signals . | . . . . . Times Spotted 41 | . 4 12 24 1 Peak Tracking Total 6 | . 3 5 6 1 Tactical Retreats 2 | . . 1 1 . Traps | -11 -10 -10 -9 -9 ------- Run | Scr Mat Min Mat Sto Traps Triggered 3 | . . . 1 2 Indirectly . | . . . . . Trap Hack Attempts . | . . . . . Triggered . | . . . . . Disarmed . | . . . . . Reprogrammed . | . . . . . Reused . | . . . . . Traps Extracted . | . . . . . Installed . | . . . . . Triggered . | . . . . . Machines | -11 -10 -10 -9 -9 ---------- Run | Scr Mat Min Mat Sto Machines Disabled 2 | . . . 2 . Max in Single Turn 1 | . . . 1 . Machines Sabotaged . | . . . . . Garrisons Compromised . | . . . . . Overloaded Fab Kills . | . . . . . Fab Network Shutdowns . | . . . . . Hacking | -11 -10 -10 -9 -9 --------- Run | Scr Mat Min Mat Sto Machines Accessed 9 | . . 1 6 2 Terminals 9 | . . 1 6 2 Fabricators . | . . . . . Repair Stations . | . . . . . Recycling Units . | . . . . . Scanalyzers . | . . . . . Garrison Access . | . . . . . Total Hacks 19 | . . 4 11 4 Successful 6 | . . 1 3 2 Failed 13 | . . 3 8 2 Catastrophic 3 | . . 1 2 . Database Lockouts . | . . . . . Manual 14 | . . 4 8 2 Terminals 19 | . . 4 11 4 Fabricators . | . . . . . Repair Stations . | . . . . . Recycling Units . | . . . . . Scanalyzers . | . . . . . Garrison Access . | . . . . . Terminal Hacks 6 | . . 1 3 2 Prototype ID Bank 1 | . . . . 1 Open Door 1 | . . . . 1 Branch Access Points 1 | . . . 1 . Unreport Threat 1 | . . 1 . . Locate Traps 1 | . . . 1 . Zone Layout 1 | . . . 1 . Fabricator Hacks . | . . . . . Repair Station Hacks . | . . . . . Recycling Unit Hacks . | . . . . . Scanalyzer . | . . . . . Garrison Access Hacks . | . . . . . Unauthorized Hacks . | . . . . . Terminals . | . . . . . Fabricators . | . . . . . Repair Stations . | . . . . . Recycling Units . | . . . . . Scanalyzers . | . . . . . Garrison Access . | . . . . . Data Cores Recovered . | . . . . . Used . | . . . . . Hacking Detections 8 | . . 1 5 2 Full Trace Events 1 | . . 1 . . Feedback Events . | . . . . . Feedback Blocked . | . . . . . Robot Schematics Acquired . | . . . . . Robots Built . | . . . . . Matter . | . . . . . Time . | . . . . . Total Robot Build Rating . | . . . . . Part Schematics Acquired . | . . . . . Parts Built . | . . . . . Matter . | . . . . . Time . | . . . . . Total Part Build Rating . | . . . . . Parts Repaired . | . . . . . Time . | . . . . . Parts Recycled . | . . . . . Recycled Matter . | . . . . . Retrieved Matter . | . . . . . Retrieved Components . | . . . . . Parts Scanalyzed . | . . . . . Part Schematics Acquired . | . . . . . Parts Damaged . | . . . . . Bothacking | -11 -10 -10 -9 -9 ------------ Run | Scr Mat Min Mat Sto Used RIF Installer . | . . . . . Robots Hacked . | . . . . . Non-combat . | . . . . . Combat . | . . . . . Robot Hacks Applied . | . . . . . Relay Couplers Released . | . . . . . Robots Rewired . | . . . . . Allies Hacked . | . . . . . Hacks Repelled . | . . . . . Allies | -11 -10 -10 -9 -9 -------- Run | Scr Mat Min Mat Sto Total Allies 3 | . . 3 . . Largest Group 3 | . . 3 . . Highest-Rated Group 40 | . . 40 . . Highest-Rated Ally 16 | . . 16 . . Total Orders 1 | . . . . 1 EXPLORE 1 | . . . . 1 Ally Attacks 22 | . . 22 . . Total Damage 243 | . . 243 . . Kills 3 | . . 3 . . Allies Corrupted 1 | . . . . 1 Allies Melted . | . . . . . Intel | -11 -10 -10 -9 -9 ------- Run | Scr Mat Min Mat Sto Robot Analysis Total . | . . . . . Derelict Logs Recovered 1 | . . 1 . . Drone Launches 16 | . . . . 16 Drone Recoveries . | . . . . . Exploration | -11 -10 -10 -9 -9 ------------- Run | Scr Mat Min Mat Sto Turns Passed 1315 | 83 83 392 504 253 Spaces Moved 924 | 60 67 350 345 102 Core 10 | 10 . . . . Treads 102 | . . . . 102 Legs . | . . . . . Wheels 812 | 50 67 350 345 . Hover . | . . . . . Flight . | . . . . . Fastest Speed 50 | 50 90 90 100 200 Average Speed 112 | 95 90 90 116 200 Slowest Speed 200 | 200 90 90 130 200 Overloaded Moves . | . . . . . Propulsion Burnouts . | . . . . . Robots Hopped . | . . . . . Cave-ins Triggered . | . . . . . Exploration Rate (%) 45 | 4 24 76 50 75 Regions Visited 4 Branch Regions 2 Pre-discovered Areas . | . . . . . Known Exits Taken 1 | . . . 1 . Unknown Exits Taken 3 | 1 1 1 . . Scrap Searched 1 | . . 1 . . Spaces Dug 11 | . . . 11 . Terrain Destroyed 72 | . 3 . 69 . Melee . | . . . . . Projectile . | . . . . . AOE 72 | . 3 . 69 . Actions | -11 -10 -10 -9 -9 --------- Run | Scr Mat Min Mat Sto Total 1130 | 77 79 406 418 150 Wait 77 | . . 36 3 38 Move 922 | 59 66 350 345 102 Hop . | . . . . . Pick Up 21 | 7 1 1 12 . Fast Attach 17 | 5 1 1 8 2 Attach 4 | 1 . 1 2 . Detach . | . . . . . Swap 6 | . . 1 5 . Drop 12 | . 1 . 11 . Fire 62 | 5 10 15 32 . Melee . | . . . . . Ram . | . . . . . Kick 1 | . . 1 . . Crush . | . . . . . Escape Stasis . | . . . . . Rewire . | . . . . . Trap . | . . . . . Miscellaneous 8 | . . . . 8 Route ------- -11/Scrapyard -10/Materials -10/Mines (discovered 2 exits: *Mat x2) -9/Materials (discovered 4 exits: [*Mat x2] / Min / *Sto) -9/Storage (discovered 1 exit: [*Mat]) History --------- Turn | Location | Event 19 | -11/Scrapyard | Discovered new exit (range 16) 84 | -11/Scrapyard | Entered Materials 159 | -10/Materials | Discovered new exit (range 9) 167 | -10/Materials | Entered Mines 179 | -10/Mines | Discovered new exit (range 9) 224 | -10/Mines | Assisted by bots powering up and referring to "LRC-V3" 306 | -10/Mines | Build established: Mutant 370 | -10/Mines | Learned Materials terminal intel 536 | -10/Mines | Discovered new exit (range 15) 559 | -10/Mines | Entered Materials 559 | -9/Materials | Evolved 2 slots: Utility x2 560 | -9/Materials | Loaded intel: 12 terminal locations 676 | -9/Materials | Discovered new exit (range 14) 925 | -9/Materials | Discovered new exit (range 9) 929 | -9/Materials | Identified exit to Mines 929 | -9/Materials | Identified exit to Storage 1063 | -9/Materials | Entered Storage 1259 | -9/Storage | Discovered new exit (range 67) 1316 | -9/Storage | Self-destructed Last Messages --------------- 01264_ Hover Unit severed. 01264_ Hover Unit disintegrated. 01264_ Lgt. Ion Engine severed. 01264_ Lgt. Ion Engine disintegrated. 01265_ U-05 Engineer lays Concrete. 01266_ Compression Vault explodes. 01266_ Drone destroyed. 01267_ The unstable cave ceiling collapses. 01270_ U-05 Engineer builds a Door. 01274_ U-05 Engineer builds a Wall. 01275_ Drone destroyed. 01277_ U-05 Engineer lays Concrete. 01295_ ALERT: Hostiles spotted, dispatching reinforcements to Terminal S004. 01297_ Drone destroyed. 01300_ ALERT: Hostiles spotted, dispatching reinforcements to Terminal S012. 01302_ Drone destroyed. 01310_ Hrd. Medium Armor Plating destroyed. 01316_ Rocket Launcher destroyed. Map ----- +----------------------------------------------------+ | ???# """ # # """" # | | ???? !! # %# # | | ???? !! # ########### | | ???# #% ########### | | ??############## ## | | ??# ## ## """ """ | | ??# # # """ """ | | ??# # # """ """ | | ??# # + """ """ | | ??# # # """ """ | | ??# ##% ## | | ??# ##% ## | | ???#####+####+##% ## ###"Y"## | | ???????# ####??"""#? | | ????#### #???###? | | ??### # #/#### #??????? | | ??# # #??????? | | ?## """ # #??????? | | ?# """ # #??????? | | ?## """ # #??????? | | ??# # #??????? | | ??### ####%###+#####??? | | ????### + #??? | | ??????## #### """"" #??? | | ######## #??# """"" #??# | | #!!!@# # #??# """"" ???# | | # Y + #??# ??## | | #!!!!# # ##+###########??# | | ######T# ## #??????# | | ?????### ## """ #??????# | | ???????# ## """ #??????# | | ??????## ## """ #??????# | | ??????# # #??????? | | ??????# # """ #??????? | | ??????# + """ #??????? | | ??????# # """ #??????? | | ??????# # #??????? | | ??????## ###########??????? | | ???????# # #??????? | | ???????# # #??????? | | ???????# # ##?????? | | ???????# + T#?????? | | ??????# # """ """ ##?????? | | ??????## # """ """ #??????? | | ???????# # """ """ #??????? | | ???????# # #??????? | | ???????# ##" "######??????? | | ???????######"R"#???????????? | | ????????????#"""#???????????? | | ?????????????###????????????? | +----------------------------------------------------+ Best States ------------- Heat Dissipation 28 Energy Generation 10 Energy Capacity 250 Matter Stores 300 Matter Capacity 300 Sight Range 16 Terrain Scan Density 10 Armor Coverage 450 Power Shielding 33 Propulsion Shielding 33 Evasion (%) 42 Recoil Reduction 1 Item Schematics ----------------- None Robot Schematics ------------------ None Fabricated ------------ Nothing Alien Tech Used ----------------- None Achievements -------------- None Challenges ------------ None Game ------ Seed ShieldNuclearCannon Manual? 0 Play Time 00:16:17 Cumulative 110.6 hours Start 2020.08.22 @ 03:03:59 End 2020.08.22 @ 03:18:32 Sessions 1 Manual Loads 0 Difficulty Rogue Special Mode None Game No. 140 Rogue 140 Adventurer 0 Explorer 0 Win Type - Total 1 Types 1/0/0/0/0/0/0 Lore% 49 Gallery% 61 Achievement% 45 Wizard Run 0 Options --------- ASCII 0 Keyboard 0 Movement Numpad Keybinds 0 Fullscreen 2 Font 24/Smallcaps Map View 76x50 Tactical HUD 1 Map Filters NONE Filters NONE Steam 1 RUN: d7a7f456-95b7-4340-b63a-90ceddea5a03